Workbook

Sheet Angaben
B1: Übergangsbereichsrechner
B3: =IFERROR(CONCATENATE(" Beitragsberechnung vers.pflichtiger Beschäftigter innerhalb des Übergangsbereichs (",UGrenz+0.01," € bis ",TEXT(OGrenz,"0.000,00")," €)"),"Beitragsberechnung vers.pfl. Beschäftigter innerhalb der Gleitzone ") -> Beitragsberechnung vers.pflichtiger Beschäftigter innerhalb des Übergangsbereichs (538,01 € bis 2.000,00 €)
B4: ="Beitragszeitraum: 01.01." & Zeitraum & " - 31.12."& Zeitraum -> Beitragszeitraum: 01.01.2024 - 31.12.2024
B5: Zutreffende Sonderregelungen: | G5: Individuelle Angaben: | M5: Auswahl des individuellen KV-Zusatzbeitragssatzes
G7: Angabe des individuellen KV-Zusatzbeitragssatzes: | J7: =IF(AND(LC_Liste_KV_Zu=1,BS_KV_Zu_man=""),"",BS_KV_Zu/100) -> 0
G9: Gültiger KV-Beitragssatz: | J9: =IFERROR(BS_KV_allg/100,"") -> 0.146
G11: Beitragsabschlag in der PV (ab dem 2. Kind)
G12: Höhe des Beitragsabschlags
G13: Beitragszuschlag wegen Kinderlosigkeit in der PV:
G15: Allgemeine Beitragssätze der Sozialversicherung:
G17: Durchschnittlicher Gesamtsozialversicherungsbeitragssatz | J17: =IFERROR(Steuerung!C7/100,"") -> 0.409
G19: allgemeiner Beitragssatz Krankenversicherung | J19: =IFERROR(Steuerung!C8/100,"") -> 0.146
G20: durchschnittl. Zusatzbeitragssatz Krankenversicherung | J20: =IFERROR(Steuerung!C12/100,"") -> 0.017
G21: Beitragssatz Rentenversicherung | J21: =IFERROR(nRV_Satz_Jahr/100,"") -> 0.186
G22: Beitragssatz Arbeitslosenversicherung | J22: =IFERROR(nAV_Satz_Jahr/100,"") -> 0.026
G23: Beitragssatz Pflegeversicherung | J23: =IFERROR(nPV_Satz_Jahr/100,"") -> 0.034
G25: Zutreffende Arbeitgeber-Umlagen
G27: U1 - Krankheitsfall | J27: =S_U1_Satz -> 0
G29: U2 - Mutterschaft | J29: =S_U2_Satz -> 0
G31: Insolvenzumlage | J31: =IFERROR(S_U3_Satz,"") -> 0

Sheet Dialog
B1: =CONCATENATE(" Beitragsberechnung vers.pfl. Beschäftigter innerhalb des Übergangsbereichs (",UGrenz+0.01," € bis ",TEXT(OGrenz,"0.000,00")," €)") -> Beitragsberechnung vers.pfl. Beschäftigter innerhalb des Übergangsbereichs (538,01 € bis 2.000,00 €)
B2: ="Beitragszeitraum: 01.01." & Zeitraum & " - 31.12."& Zeitraum -> Beitragszeitraum: 01.01.2024 - 31.12.2024
B4: Berechnungsgrundlagen: | F4: Aktive Sonderregelungen: | K4: ohne Sonderfall
D5: Monatliches Arbeitsentgelt: | E5: 1000 | F5: KV: | G5: allgemeiner Beitragssatz
D7: Übergangsbereichsentgelt: | E7: 883.94 | F7: RV:
D9: BE Arbeitnehmer: | E9: 632.01 | F9: AV:
F11: PV:
F13: Sonderfälle:
B17: Voller SV-Beitrag: | D17: Arbeitgeberanteile: | F17: Arbeitnehmeranteile: | H17: Beitragssatz:
B18: KV: | C18: 129.06 | D18: KV: | E18: 82.92 | F18: KV: | G18: 46.14 | H18: KV: | I18: 0.146
B20: =IF(S_KV_PV_frei<>TRUE,"Zusatz KV:","") -> Zusatz KV: | D20: =B20 -> Zusatz KV: | F20: =B20 -> Zusatz KV: | H20: =B20 -> Zusatz KV:
B22: RV: | C22: 164.42 | D22: RV: | E22: 105.64 | F22: RV: | G22: 58.78 | H22: RV: | I22: 0.186
B24: AV: | C24: 22.98 | D24: AV: | E24: 14.76 | F24: AV: | G24: 8.22 | H24: AV: | I24: 0.026
B26: PV: | C26: 30.06 | D26: PV: | E26: 19.32 | F26: PV: | G26: 10.74 | H26: PV: | I26: 0.034
B28: =IF(S_PV_Zu=1,"Zuschl. PV:","") ->  | D28: =B28 ->  | F28: =B28 ->  | H28: =B28 -> 
B30: SV-Gesamt: | C30: =SUM(C18:C28) -> 346.52 | D30: SV-Gesamt: | E30: =SUM(E18:E28) -> 222.64 | F30: SV-Gesamt: | G30: =SUM(G18:G28) -> 123.88
B32: =IF(S_U1=TRUE,"U1:","") ->  | D32: =B32 ->  | H32: =B32 -> 
B33: =IF(S_U2=TRUE,"U2:","") ->  | D33: =B33 ->  | H33: =B33 -> 
B34: =IF(S_U3=TRUE,"Insolvenzuml.:","") ->  | D34: =B34 ->  | H34: =B34 -> 
B36: =IF(OR(S_U1=TRUE,S_U2=TRUE,S_U3=TRUE),"Uml.-Gesamt:","") ->  | C36: =IF(OR(S_U1=TRUE,S_U2=TRUE,S_U3=TRUE),SUM(C32:C34),"") ->  | D36: =B36 ->  | E36: =IF(OR(S_U1=TRUE,S_U2=TRUE,S_U3=TRUE),SUM(E32:E35),"") -> 
B38: =IF(OR(S_U1=TRUE,S_U2=TRUE,S_U3=TRUE),"Insgesamt:","") ->  | C38: =IF(OR(S_U1=TRUE,S_U2=TRUE,S_U3=TRUE),SUM(C30:C34),"") ->  | D38: =B38 ->  | E38: =IF(OR(S_U1=TRUE,S_U2=TRUE,S_U3=TRUE),SUM(E30:E34),"") ->  | F38: =B38 ->  | G38: =IF(OR(S_U1=TRUE,S_U2=TRUE,S_U3=TRUE),SUM(G30:G34),"") -> 

Sheet Tabelle
C1: Beitragspflichtige Einnahmen und Beitragsberechnung versicherungspfl. Beschäftigter
C2: =CONCATENATE("innerhalb des Übergangsbereichs von ",UGrenz+0.01," € bis ",TEXT(OGrenz,"0.000,00")," €") -> innerhalb des Übergangsbereichs von 538,01 € bis 2.000,00 €
C3: (§ 20 Abs.2 und Abs. 2a SGB IV, § 344 Abs.4 SGB III, § 226 Abs.4 SGB V, § 163 Abs. 7 SGB VI, § 58 Abs.5 SGB XI)
C5: ="Beitragszeitraum: 01.01." & Zeitraum & " - 31.12." & Zeitraum -> Beitragszeitraum: 01.01.2024 - 31.12.2024
C6: monatliches Arbeitsentgelt | D6: ="Beitragsbemes-sungsgrundlage bei: "&Steuerung!C7&" %" -> Beitragsbemes-sungsgrundlage bei: 40,9 % | E6: Beitragspflichtige Einnahme Arbeitnehmer | F6: monatliches Arbeitsentgelt | G6: =D6 -> Beitragsbemes-sungsgrundlage bei: 40,9 % | H6: Beitragspflichtige Einnahme Arbeitnehmer
C7: =UGrenz+0.01 -> 538.01 | D7: =ROUND(Faktor * UGrenz + ((OGrenz / (OGrenz - UGrenz)) - (UGrenz / (OGrenz - UGrenz)) * Faktor) * (C7 - UGrenz), 2) -> 368.33 | E7: =ROUND((OGrenz / (OGrenz - UGrenz)) * (C7 - UGrenz), 2) -> 0.01 | F7: =C61+5 -> 810 | G7: =ROUND(Faktor * UGrenz + ((OGrenz / (OGrenz - UGrenz)) - (UGrenz / (OGrenz - UGrenz)) * Faktor) * (F7 - UGrenz), 2) -> 671.88 | H7: =ROUND((OGrenz / (OGrenz - UGrenz)) * (F7 - UGrenz), 2) -> 372.09
C8: =UGrenz+2 -> 540 | D8: 370.55 | E8: 2.74 | F8: =F7+5 -> 815 | G8: 677.46 | H8: 378.93
C9: =C8+5 -> 545 | D9: 376.13 | E9: 9.58 | F9: =F8+5 -> 820 | G9: 683.04 | H9: 385.77
C10: 550 | D10: 381.71 | E10: 16.42 | F10: 825 | G10: 688.63 | H10: 392.61
C11: 555 | D11: 387.29 | E11: 23.26 | F11: 830 | G11: 694.21 | H11: 399.45
C12: 560 | D12: 392.87 | E12: 30.1 | F12: 835 | G12: 699.79 | H12: 406.29
C13: 565 | D13: 398.45 | E13: 36.94 | F13: 840 | G13: 705.37 | H13: 413.13
C14: 570 | D14: 404.03 | E14: 43.78 | F14: 845 | G14: 710.95 | H14: 419.97
C15: 575 | D15: 409.61 | E15: 50.62 | F15: 850 | G15: 716.53 | H15: 426.81
C16: 580 | D16: 415.19 | E16: 57.46 | F16: 855 | G16: 722.11 | H16: 433.65
C17: 585 | D17: 420.77 | E17: 64.3 | F17: 860 | G17: 727.69 | H17: 440.49
C18: 590 | D18: 426.35 | E18: 71.14 | F18: 865 | G18: 733.27 | H18: 447.33
C19: 595 | D19: 431.93 | E19: 77.98 | F19: 870 | G19: 738.85 | H19: 454.17
C20: 600 | D20: 437.51 | E20: 84.82 | F20: 875 | G20: 744.43 | H20: 461.01
C21: 605 | D21: 443.09 | E21: 91.66 | F21: 880 | G21: 750.01 | H21: 467.85
C22: 610 | D22: 448.67 | E22: 98.5 | F22: 885 | G22: 755.59 | H22: 474.69
C23: =C22+5 -> 615 | D23: 454.25 | E23: 105.34 | F23: 890 | G23: 761.17 | H23: 481.53
C24: 620 | D24: 459.83 | E24: 112.18 | F24: 895 | G24: 766.75 | H24: 488.37
C25: 625 | D25: 465.41 | E25: 119.02 | F25: 900 | G25: 772.33 | H25: 495.21
C26: 630 | D26: 470.99 | E26: 125.85 | F26: 905 | G26: 777.91 | H26: 502.05
C27: 635 | D27: 476.57 | E27: 132.69 | F27: 910 | G27: 783.49 | H27: 508.89
C28: 640 | D28: 482.15 | E28: 139.53 | F28: 915 | G28: 789.07 | H28: 515.73
C29: 645 | D29: 487.73 | E29: 146.37 | F29: 920 | G29: 794.65 | H29: 522.57
C30: =C29+5 -> 650 | D30: 493.31 | E30: 153.21 | F30: 925 | G30: 800.23 | H30: 529.41
C31: 655 | D31: 498.89 | E31: 160.05 | F31: 930 | G31: 805.81 | H31: 536.25
C32: 660 | D32: 504.47 | E32: 166.89 | F32: 935 | G32: 811.39 | H32: 543.09
C33: 665 | D33: 510.05 | E33: 173.73 | F33: 940 | G33: 816.97 | H33: 549.93
C34: 670 | D34: 515.64 | E34: 180.57 | F34: 945 | G34: 822.55 | H34: 556.77
C35: 675 | D35: 521.22 | E35: 187.41 | F35: 950 | G35: 828.13 | H35: 563.61
C36: 680 | D36: 526.8 | E36: 194.25 | F36: 955 | G36: 833.71 | H36: 570.45
C37: 685 | D37: 532.38 | E37: 201.09 | F37: 960 | G37: 839.29 | H37: 577.29
C38: 690 | D38: 537.96 | E38: 207.93 | F38: 965 | G38: 844.87 | H38: 584.13
C39: 695 | D39: =ROUND(Faktor * UGrenz + ((OGrenz / (OGrenz - UGrenz)) - (UGrenz / (OGrenz - UGrenz)) * Faktor) * (C39 - UGrenz), 2) -> 543.54 | E39: =ROUND((OGrenz / (OGrenz - UGrenz)) * (C39 - UGrenz), 2) -> 214.77 | F39: 970 | G39: =ROUND(Faktor * UGrenz + ((OGrenz / (OGrenz - UGrenz)) - (UGrenz / (OGrenz - UGrenz)) * Faktor) * (F39 - UGrenz), 2) -> 850.45 | H39: =ROUND((OGrenz / (OGrenz - UGrenz)) * (F39 - UGrenz), 2) -> 590.97
C40: 700 | D40: 549.12 | E40: 221.61 | F40: 975 | G40: 856.03 | H40: 597.81
C41: 705 | D41: 554.7 | E41: 228.45 | F41: 980 | G41: 861.61 | H41: 604.65
C42: 710 | D42: 560.28 | E42: 235.29 | F42: 985 | G42: 867.2 | H42: 611.49
C43: 715 | D43: 565.86 | E43: 242.13 | F43: 990 | G43: 872.78 | H43: 618.33
C44: 720 | D44: 571.44 | E44: 248.97 | F44: 995 | G44: 878.36 | H44: 625.17
C45: 725 | D45: 577.02 | E45: 255.81 | F45: 1000 | G45: 883.94 | H45: 632.01
C46: =C45+5 -> 730 | D46: 582.6 | E46: 262.65 | F46: 1005 | G46: 889.52 | H46: 638.85
C47: =C46+5 -> 735 | D47: 588.18 | E47: 269.49 | F47: 1010 | G47: 895.1 | H47: 645.69
C48: 740 | D48: 593.76 | E48: 276.33 | F48: 1015 | G48: 900.68 | H48: 652.53
C49: 745 | D49: 599.34 | E49: 283.17 | F49: 1020 | G49: 906.26 | H49: 659.37
C50: 750 | D50: 604.92 | E50: 290.01 | F50: 1025 | G50: 911.84 | H50: 666.21
C51: 755 | D51: 610.5 | E51: 296.85 | F51: 1030 | G51: 917.42 | H51: 673.05
C52: 760 | D52: 616.08 | E52: 303.69 | F52: 1035 | G52: 923 | H52: 679.89
C53: 765 | D53: 621.66 | E53: 310.53 | F53: 1040 | G53: 928.58 | H53: 686.73
C54: 770 | D54: 627.24 | E54: 317.37 | F54: 1045 | G54: 934.16 | H54: 693.57
C55: 775 | D55: 632.82 | E55: 324.21 | F55: 1050 | G55: 939.74 | H55: 700.41
C56: 780 | D56: 638.4 | E56: 331.05 | F56: 1055 | G56: 945.32 | H56: 707.25
C57: 785 | D57: 643.98 | E57: 337.89 | F57: 1060 | G57: 950.9 | H57: 714.09
C58: 790 | D58: 649.56 | E58: 344.73 | F58: 1065 | G58: 956.48 | H58: 720.93
C59: 795 | D59: 655.14 | E59: 351.57 | F59: 1070 | G59: 962.06 | H59: 727.77
C60: 800 | D60: 660.72 | E60: 358.41 | F60: 1075 | G60: 967.64 | H60: 734.61
C61: 805 | D61: 666.3 | E61: 365.25 | F61: 1080 | G61: 973.22 | H61: 741.45
C62: =F61+5 -> 1085 | D62: 978.8 | E62: 748.29 | F62: =C114+5 -> 1350 | G62: 1274.56 | H62: 1110.81
C63: 1090 | D63: 984.38 | E63: 755.13 | F63: 1355 | G63: 1280.14 | H63: 1117.65
C64: 1095 | D64: 989.96 | E64: 761.97 | F64: 1360 | G64: 1285.72 | H64: 1124.49
C65: 1100 | D65: 995.54 | E65: 768.81 | F65: =IF(F64+5<=OGrenz,F64+5,"") -> 1365 | G65: 1291.3 | H65: 1131.33
C66: 1105 | D66: 1001.12 | E66: 775.65 | F66: =IF(F65+5<=OGrenz,F65+5,"") -> 1370 | G66: 1296.88 | H66: 1138.17
C67: 1110 | D67: 1006.7 | E67: 782.49 | F67: =IF(F66+5<=OGrenz,F66+5,"") -> 1375 | G67: 1302.46 | H67: 1145.01
C68: 1115 | D68: 1012.28 | E68: 789.33 | F68: =IF(F67+5<=OGrenz,F67+5,"") -> 1380 | G68: 1308.04 | H68: 1151.85
C69: 1120 | D69: 1017.86 | E69: 796.17 | F69: =IF(F68+5<=OGrenz,F68+5,"") -> 1385 | G69: 1313.62 | H69: 1158.69
C70: 1125 | D70: 1023.44 | E70: 803.01 | F70: =IFERROR(IF(F69+5<=OGrenz,F69+5,""),"") -> 1390 | G70: 1319.2 | H70: 1165.53
C71: 1130 | D71: =ROUND(Faktor * UGrenz + ((OGrenz / (OGrenz - UGrenz)) - (UGrenz / (OGrenz - UGrenz)) * Faktor) * (C71 - UGrenz), 2) -> 1029.02 | E71: =ROUND((OGrenz / (OGrenz - UGrenz)) * (C71 - UGrenz), 2) -> 809.85 | F71: 1395 | G71: =ROUND(Faktor * UGrenz + ((OGrenz / (OGrenz - UGrenz)) - (UGrenz / (OGrenz - UGrenz)) * Faktor) * (F71 - UGrenz), 2) -> 1324.78 | H71: =ROUND((OGrenz / (OGrenz - UGrenz)) * (F71 - UGrenz), 2) -> 1172.37
C72: 1135 | D72: 1034.6 | E72: 816.69 | F72: 1400 | G72: 1330.36 | H72: 1179.21
C73: 1140 | D73: 1040.19 | E73: 823.53 | F73: 1405 | G73: 1335.94 | H73: 1186.05
C74: 1145 | D74: 1045.77 | E74: 830.37 | F74: 1410 | G74: 1341.52 | H74: 1192.89
C75: 1150 | D75: 1051.35 | E75: 837.21 | F75: 1415 | G75: 1347.1 | H75: 1199.73
C76: 1155 | D76: 1056.93 | E76: 844.05 | F76: 1420 | G76: 1352.68 | H76: 1206.57
C77: 1160 | D77: 1062.51 | E77: 850.89 | F77: 1425 | G77: 1358.26 | H77: 1213.41
C78: 1165 | D78: 1068.09 | E78: 857.73 | F78: 1430 | G78: 1363.84 | H78: 1220.25
C79: 1170 | D79: 1073.67 | E79: 864.57 | F79: 1435 | G79: 1369.42 | H79: 1227.09
C80: 1175 | D80: 1079.25 | E80: 871.41 | F80: 1440 | G80: 1375 | H80: 1233.93
C81: 1180 | D81: 1084.83 | E81: 878.25 | F81: 1445 | G81: 1380.58 | H81: 1240.77
C82: 1185 | D82: 1090.41 | E82: 885.09 | F82: 1450 | G82: 1386.16 | H82: 1247.61
C83: 1190 | D83: 1095.99 | E83: 891.93 | F83: 1455 | G83: 1391.75 | H83: 1254.45
C84: 1195 | D84: 1101.57 | E84: 898.77 | F84: 1460 | G84: 1397.33 | H84: 1261.29
C85: 1200 | D85: 1107.15 | E85: 905.61 | F85: 1465 | G85: 1402.91 | H85: 1268.13
C86: 1205 | D86: 1112.73 | E86: 912.45 | F86: 1470 | G86: 1408.49 | H86: 1274.97
C87: 1210 | D87: 1118.31 | E87: 919.29 | F87: 1475 | G87: 1414.07 | H87: 1281.81
C88: 1215 | D88: 1123.89 | E88: 926.13 | F88: 1480 | G88: 1419.65 | H88: 1288.65
C89: 1220 | D89: 1129.47 | E89: 932.97 | F89: 1485 | G89: 1425.23 | H89: 1295.49
C90: 1225 | D90: 1135.05 | E90: 939.81 | F90: 1490 | G90: 1430.81 | H90: 1302.33
C91: 1230 | D91: 1140.63 | E91: 946.65 | F91: 1495 | G91: 1436.39 | H91: 1309.17
C92: 1235 | D92: 1146.21 | E92: 953.49 | F92: 1500 | G92: 1441.97 | H92: 1316.01
C93: 1240 | D93: 1151.79 | E93: 960.33 | F93: 1505 | G93: 1447.55 | H93: 1322.85
C94: 1245 | D94: 1157.37 | E94: 967.17 | F94: 1510 | G94: 1453.13 | H94: 1329.69
C95: 1250 | D95: 1162.95 | E95: 974.01 | F95: 1515 | G95: 1458.71 | H95: 1336.53
C96: 1255 | D96: 1168.53 | E96: 980.85 | F96: 1520 | G96: 1464.29 | H96: 1343.37
C97: 1260 | D97: 1174.11 | E97: 987.69 | F97: 1525 | G97: 1469.87 | H97: 1350.21
C98: 1265 | D98: 1179.69 | E98: 994.53 | F98: 1530 | G98: 1475.45 | H98: 1357.05
C99: 1270 | D99: 1185.27 | E99: 1001.37 | F99: 1535 | G99: 1481.03 | H99: 1363.89
C100: 1275 | D100: 1190.85 | E100: 1008.21 | F100: 1540 | G100: 1486.61 | H100: 1370.73
C101: 1280 | D101: 1196.43 | E101: 1015.05 | F101: 1545 | G101: 1492.19 | H101: 1377.56
C102: 1285 | D102: 1202.01 | E102: 1021.89 | F102: 1550 | G102: 1497.77 | H102: 1384.4
C103: 1290 | D103: =ROUND(Faktor * UGrenz + ((OGrenz / (OGrenz - UGrenz)) - (UGrenz / (OGrenz - UGrenz)) * Faktor) * (C103 - UGrenz), 2) -> 1207.59 | E103: =ROUND((OGrenz / (OGrenz - UGrenz)) * (C103 - UGrenz), 2) -> 1028.73 | F103: 1555 | G103: =ROUND(Faktor * UGrenz + ((OGrenz / (OGrenz - UGrenz)) - (UGrenz / (OGrenz - UGrenz)) * Faktor) * (F103 - UGrenz), 2) -> 1503.35 | H103: =ROUND((OGrenz / (OGrenz - UGrenz)) * (F103 - UGrenz), 2) -> 1391.24
C104: 1295 | D104: 1213.18 | E104: 1035.57 | F104: 1560 | G104: 1508.93 | H104: 1398.08
C105: 1300 | D105: 1218.76 | E105: 1042.41 | F105: 1565 | G105: 1514.51 | H105: 1404.92
C106: 1305 | D106: 1224.34 | E106: 1049.25 | F106: 1570 | G106: 1520.09 | H106: 1411.76
C107: 1310 | D107: 1229.92 | E107: 1056.09 | F107: 1575 | G107: 1525.67 | H107: 1418.6
C108: 1315 | D108: 1235.5 | E108: 1062.93 | F108: 1580 | G108: 1531.25 | H108: 1425.44
C109: 1320 | D109: 1241.08 | E109: 1069.77 | F109: 1585 | G109: 1536.83 | H109: 1432.28
C110: 1325 | D110: 1246.66 | E110: 1076.61 | F110: 1590 | G110: 1542.41 | H110: 1439.12
C111: =C110+5 -> 1330 | D111: 1252.24 | E111: 1083.45 | F111: 1595 | G111: 1547.99 | H111: 1445.96
C112: =C111+5 -> 1335 | D112: 1257.82 | E112: 1090.29 | F112: 1600 | G112: 1553.57 | H112: 1452.8
C113: =C112+5 -> 1340 | D113: 1263.4 | E113: 1097.13 | F113: 1605 | G113: 1559.15 | H113: 1459.64
C114: =C113+5 -> 1345 | D114: 1268.98 | E114: 1103.97 | F114: 1610 | G114: 1564.74 | H114: 1466.48
C115: =F114+5 -> 1615 | D115: 1570.32 | E115: =ROUND((OGrenz / (OGrenz - UGrenz)) * (C115 - UGrenz), 2) -> 1473.32 | F115: =C153+5 -> 1810 | G115: 1787.95 | H115: 1740.08
C116: =C115+5 -> 1620 | D116: 1575.9 | E116: =ROUND((OGrenz / (OGrenz - UGrenz)) * (C116 - UGrenz), 2) -> 1480.16 | F116: =F115+5 -> 1815 | G116: 1793.53 | H116: 1746.92
C117: =C116+5 -> 1625 | D117: 1581.48 | E117: 1487 | F117: =F116+5 -> 1820 | G117: 1799.11 | H117: 1753.76
C118: 1630 | D118: 1587.06 | E118: 1493.84 | F118: 1825 | G118: 1804.69 | H118: 1760.6
C119: 1635 | D119: 1592.64 | E119: 1500.68 | F119: 1830 | G119: 1810.27 | H119: 1767.44
C120: 1640 | D120: 1598.22 | E120: 1507.52 | F120: 1835 | G120: 1815.85 | H120: 1774.28
C121: 1645 | D121: 1603.8 | E121: 1514.36 | F121: 1840 | G121: 1821.43 | H121: 1781.12
C122: 1650 | D122: 1609.38 | E122: 1521.2 | F122: 1845 | G122: 1827.01 | H122: 1787.96
C123: 1655 | D123: 1614.96 | E123: 1528.04 | F123: 1850 | G123: 1832.59 | H123: 1794.8
C124: 1660 | D124: 1620.54 | E124: 1534.88 | F124: 1855 | G124: 1838.17 | H124: 1801.64
C125: 1665 | D125: 1626.12 | E125: 1541.72 | F125: 1860 | G125: 1843.75 | H125: 1808.48
C126: 1670 | D126: 1631.7 | E126: 1548.56 | F126: 1865 | G126: 1849.33 | H126: 1815.32
C127: 1675 | D127: 1637.28 | E127: 1555.4 | F127: 1870 | G127: 1854.91 | H127: 1822.16
C128: 1680 | D128: 1642.86 | E128: 1562.24 | F128: 1875 | G128: 1860.49 | H128: 1829
C129: 1685 | D129: 1648.44 | E129: 1569.08 | F129: 1880 | G129: 1866.07 | H129: 1835.84
C130: 1690 | D130: 1654.02 | E130: 1575.92 | F130: 1885 | G130: 1871.65 | H130: 1842.68
C131: 1695 | D131: 1659.6 | E131: 1582.76 | F131: 1890 | G131: 1877.23 | H131: 1849.52
C132: 1700 | D132: 1665.18 | E132: 1589.6 | F132: 1895 | G132: 1882.81 | H132: 1856.36
C133: 1705 | D133: 1670.76 | E133: 1596.44 | F133: 1900 | G133: 1888.39 | H133: 1863.2
C134: 1710 | D134: 1676.34 | E134: 1603.28 | F134: 1905 | G134: 1893.97 | H134: 1870.04
C135: 1715 | D135: =ROUND(Faktor * UGrenz + ((OGrenz / (OGrenz - UGrenz)) - (UGrenz / (OGrenz - UGrenz)) * Faktor) * (C135 - UGrenz), 2) -> 1681.92 | E135: 1610.12 | F135: 1910 | G135: =ROUND(Faktor * UGrenz + ((OGrenz / (OGrenz - UGrenz)) - (UGrenz / (OGrenz - UGrenz)) * Faktor) * (F135 - UGrenz), 2) -> 1899.55 | H135: 1876.88
C136: 1720 | D136: 1687.5 | E136: 1616.96 | F136: 1915 | G136: 1905.13 | H136: 1883.72
C137: 1725 | D137: 1693.08 | E137: 1623.8 | F137: 1920 | G137: 1910.71 | H137: 1890.56
C138: 1730 | D138: 1698.66 | E138: 1630.64 | F138: 1925 | G138: 1916.3 | H138: 1897.4
C139: 1735 | D139: 1704.24 | E139: =ROUND((OGrenz / (OGrenz - UGrenz)) * (C139 - UGrenz), 2) -> 1637.48 | F139: 1930 | G139: 1921.88 | H139: 1904.24
C140: =C139+5 -> 1740 | D140: 1709.82 | E140: 1644.32 | F140: 1935 | G140: 1927.46 | H140: 1911.08
C141: 1745 | D141: 1715.4 | E141: 1651.16 | F141: 1940 | G141: 1933.04 | H141: 1917.92
C142: 1750 | D142: 1720.98 | E142: 1658 | F142: 1945 | G142: 1938.62 | H142: 1924.76
C143: 1755 | D143: 1726.56 | E143: 1664.84 | F143: 1950 | G143: 1944.2 | H143: 1931.6
C144: 1760 | D144: 1732.14 | E144: 1671.68 | F144: 1955 | G144: 1949.78 | H144: 1938.44
C145: 1765 | D145: 1737.73 | E145: 1678.52 | F145: 1960 | G145: 1955.36 | H145: 1945.28
C146: 1770 | D146: 1743.31 | E146: 1685.36 | F146: 1965 | G146: 1960.94 | H146: 1952.12
C147: 1775 | D147: 1748.89 | E147: 1692.2 | F147: 1970 | G147: 1966.52 | H147: 1958.96
C148: 1780 | D148: 1754.47 | E148: 1699.04 | F148: 1975 | G148: 1972.1 | H148: 1965.8
C149: 1785 | D149: 1760.05 | E149: 1705.88 | F149: 1980 | G149: 1977.68 | H149: 1972.64
C150: 1790 | D150: 1765.63 | E150: 1712.72 | F150: 1985 | G150: 1983.26 | H150: 1979.48
C151: 1795 | D151: 1771.21 | E151: 1719.56 | F151: 1990 | G151: 1988.84 | H151: 1986.32
C152: 1800 | D152: 1776.79 | E152: 1726.4 | F152: 1995 | G152: 1994.42 | H152: 1993.16
C153: 1805 | D153: 1782.37 | E153: 1733.24 | F153: 2000 | G153: 2000 | H153: 2000

Sheet Steuerung (hidden)
A1: Bezeichnung | B1: Rückgabe | C1: Wert | D1: TabellenSpalte
A2: Gewähltes Jahr | B2: =LC_Liste_Jahr -> 1 | C2: =VALUE(RIGHT(VLOOKUP(B2,Jahr,2,0),4)) -> 2024
A3: Beitragszeitraum | B3: 1 | C3: =IFERROR(VLOOKUP(B3,Jahr,D3,0),"Fehler") -> 2024 | D3: =SUMIF(Listen!$F$19:$U$20,A3,Listen!$F$20:$U$20) -> 2 | F3: F | G3: FÜ
A4: Untergrenze | B4: =B2 -> 1 | C4: =IF(B6,G4,F4) -> 538 | D4: =SUMIF(Listen!$F$19:$U$20,A4,Listen!$F$20:$U$20) -> 11 | F4: =VLOOKUP($B4,Jahr,$D4,0) -> 538 | G4: 450
A5: Obergrenze | B5: =B2 -> 1 | C5: =IF(B6,G5,F5) -> 2000 | D5: =SUMIF(Listen!$F$19:$U$20,A5,Listen!$F$20:$U$20) -> 12 | F5: =VLOOKUP($B5,Jahr,$D5,0) -> 2000 | G5: 1300
A6: Faktor | B6: FALSE | C6: =ROUND(IF(B6,G6/C7,F6/C7),4) -> 0.6846 | F6: 28 | G6: 30
A7: Summe SV | B7: =B2 -> 1 | C7: =VLOOKUP(B7,Jahr,D7,0) -> 40.9 | D7: =SUMIF(Listen!$F$19:$U$20,A7,Listen!$F$20:$U$20) -> 3
A8: KV allg | B8: =B2 -> 1 | C8: 14.6 | D8: =SUMIF(Listen!$F$19:$U$20,A8,Listen!$F$20:$U$20) -> 9
A9: RV | B9: =B2 -> 1 | C9: 18.6 | D9: =SUMIF(Listen!$F$19:$U$20,A9,Listen!$F$20:$U$20) -> 5
A10: AV | B10: =B2 -> 1 | C10: 2.6 | D10: =SUMIF(Listen!$F$19:$U$20,A10,Listen!$F$20:$U$20) -> 6
A11: PV | B11: =B2 -> 1 | C11: 3.4 | D11: =SUMIF(Listen!$F$19:$U$20,A11,Listen!$F$20:$U$20) -> 7
A12: Zusatz KV | B12: =B2 -> 1 | C12: 1.7 | D12: =SUMIF(Listen!$F$19:$U$20,A12,Listen!$F$20:$U$20) -> 4
A13: KV erm | B13: =B2 -> 1 | C13: =VLOOKUP(B13,Jahr,D13,0) -> 14 | D13: =SUMIF(Listen!$F$19:$U$20,A13,Listen!$F$20:$U$20) -> 10
A14: KV allg | B14: =B2 -> 1 | C14: =VLOOKUP(B14,Jahr,D14,0) -> 14.6 | D14: =SUMIF(Listen!$F$19:$U$20,A14,Listen!$F$20:$U$20) -> 9
A15: KV Beitragssatz | B15: =IF(S_BS_allg,1,2) -> 1 | C15: =IF(S_KV_allg_erm.BS=2,C13,C14) -> 14.6 | F15: S_BS_allg | G15: TRUE
A16: KV individueller ZusatzBS | B16: 1 | C16: =IFERROR(VLOOKUP(B16,KV,2,0)*100,D16) -> 0 | D16: 0.4 | E16: manuell | F16: S_BS_ermäßigt | G16: FALSE
A17: RV Knappsch. | B17: =B2 -> 1 | C17: =VLOOKUP(B17,Jahr,D17,0) -> 24.7 | D17: =SUMIF(Listen!$F$19:$U$20,A17,Listen!$F$20:$U$20) -> 8
A18: AG-Ant. Sachsen | B18: =B2 -> 1 | C18: =VLOOKUP(B18,Jahr,D18,0) -> 0.012 | D18: =SUMIF(Listen!$F$19:$U$20,A18,Listen!$F$20:$U$20) -> 13
A19: AN-Ant. Sachsen | B19: =B2 -> 1 | C19: =VLOOKUP(B19,Jahr,D19,0) -> 0.022 | D19: =SUMIF(Listen!$F$19:$U$20,A19,Listen!$F$20:$U$20) -> 14
A20: Zuschlag wg Kinderlosigkeit | B20: 2 | C20: =IF(S_PV_Zu=1,VLOOKUP(B2,Jahr,D20,0),0) -> 0 | D20: =SUMIF(Listen!$F$19:$U$20,A20,Listen!$F$20:$U$20) -> 16 | F20: PV_Abschlag | G20: 2
A21: U1 - Krankheitsfall | B21: FALSE | C21: 0 | F21: PV_Abschlagshöhe | H21: =IF(BS_PV_Ab="",0,BS_PV_Ab) -> 0
A22: U2 - Mutterschaft | B22: FALSE | C22: 0
A23: Insolvenzgeld | B23: FALSE | C23: =IF(S_U3=TRUE,VLOOKUP(B5,Jahr,D23,0),0) -> 0 | D23: =SUMIF(Listen!$F$19:$U$20,A23,Listen!$F$20:$U$20) -> 15
A25: Frei KV/PV
A26: PV Sachsen | B26: FALSE
A27: Frei RV | B27: FALSE
A28: RV nur AG | B28: FALSE
A29: RV Knappsch. | B29: FALSE
A30: nur AV | B30: 0
A31: Frei AV | B31: FALSE
A32: Frei AV_AN | B32: FALSE
A34: Sonderfall 1 | B34: FALSE
A35: Sonderfall 2 | B35: FALSE
A36: Sonderfall2 Option | B36: =IF(S_Sonder_2_Opt1,1,2) -> 2 | F36: S_Sonder_2_Opt1 | I36: =IF(S_Sonder_2_Opt1,1,2) -> 2
A37: Mehrfachbesch. | B37: FALSE | F37: S_Sonder_2_Opt2
A38: Sonderfall 4 | B38: FALSE
A39: Azubi
A41: Auswahl Sonderfall | B41: =INDIRECT("Steuerung!A"&58+nAuswahl_Sonder) -> S2_O1_O2_Zusatz | C41: =SUM(C62:C70) -> 2
A42: Auswahl KV | C42: =SUM(C73:C75) -> 12
A43: Auswahl PV | C43: =SUM(C78:C80) -> 20
A44: Auswahl RV | C44: =SUM(C83:C87) -> 30
A45: Auswahl AV | C45: =SUM(C90:C92) -> 40
A46: PV Kinderzuschlag | B46: =IF(AND(S_KV_PV_frei<>TRUE,S_PV_Zu=1),TRUE) -> FALSE | C46: =IF(B46,50,"") -> 
A49: Opt_Sond2_Tage
A50: Opt_Sond2_Stunden
A51: Opt_Sond2_Wostu
A52: Opt_Sond2_Entgelt
A53: AE
A54: Sond3_Entgelt
A55: Sond3_Sonstentgelt
A56: Sond3_Quotient | B56: 0.2727272727
A58: S2_O1_O2 | B58: =IF(S_Sonder_2_Opt=1," Tagen"," geleist. h ") -> geleist. h
A59: Anzahl_S2_O1_O2 | B59: =IF(S_Sonder_2_Opt=1,VALUE(B49),VALUE(B50)) -> 0
A60: S2_O1_O2_Zusatz | B60: =IF(S_Sonder_2_Opt=2,"/ "&VALUE(B51)&" h wtl. Regel-AZ","") -> / 0 h wtl. Regel-AZ | H60: S_Sonder_1 | I60: S_Sonder_2 | J60: S_Mehrfach | K60: S_Sonder_4
H61: =S_Sonder_1 -> FALSE | I61: =S_Sonder_2 -> FALSE | J61: =S_Mehrfach -> FALSE | K61: =S_Sonder_4 -> FALSE
A62: AE ohne Sonder | B62: =IF(AND(S_Sonder_1<>TRUE,S_Sonder_2<>TRUE,S_Mehrfach<>TRUE,S_Sonder_4<>TRUE),TRUE) -> TRUE | C62: =IF(B62,1,"") -> 1 | E62: 1 | F62: OHNE | H62: F | I62: F | J62: F | K62: F
A63: Mehrfachbesch. | B63: =IF(AND(S_Sonder_1<>TRUE,S_Sonder_2<>TRUE,S_Mehrfach=TRUE,S_Sonder_4<>TRUE),TRUE) -> FALSE | C63: =IF(B63,2,"") ->  | E63: 2 | F63: Mehrfach | H63: F | I63: F | J63: W | K63: F
A64: Teilmonate | B64: =IF(AND(S_Sonder_1<>TRUE,S_Sonder_2=TRUE,S_Mehrfach<>TRUE,S_Sonder_4<>TRUE),TRUE) -> FALSE | C64: =IF(B64,3,"") ->  | E64: 3 | F64: Teil monat | H64: F | I64: W | J64: F | K64: F
A65: mit Einmalzahlung | B65: =IF(AND(S_Sonder_1<>TRUE,S_Sonder_2<>TRUE,S_Mehrfach<>TRUE,S_Sonder_4=TRUE),TRUE) -> FALSE | C65: =IF(B65,4,"") ->  | E65: 4 | F65: Einmal zahlung | H65: F | I65: F | J65: F | K65: W
A66: Teilmonat bei Mehrfach | B66: =IF(AND(S_Sonder_1<>TRUE,S_Sonder_2=TRUE,S_Mehrfach=TRUE,S_Sonder_4<>TRUE),TRUE) -> FALSE | C66: =IF(B66,5,"") ->  | E66: 5 | F66: Teilmonat bei Mehrfach beschäftigung | H66: F | I66: W | J66: W | K66: F
A67: Einmalzahlung bei Teilmonat | B67: =IF(AND(S_Sonder_1<>TRUE,S_Sonder_2=TRUE,S_Mehrfach<>TRUE,S_Sonder_4=TRUE),TRUE) -> FALSE | C67: =IF(B67,6,"") ->  | E67: 6 | F67: Einmalzahlung bei Teilmonat | H67: F | I67: W | J67: F | K67: W
A68: AE unter UGrenze | B68: =IF(AND(S_Sonder_1=TRUE,S_Sonder_2<>TRUE,S_Mehrfach<>TRUE,S_Sonder_4<>TRUE),TRUE) -> FALSE | C68: =IF(B68,7,"") ->  | E68: 7 | F68: unter UnterGrenze | H68: W | I68: F | J68: F | K68: F
A69: AE unter UGrenze und Teilmonat | B69: =IF(AND(S_Sonder_1=TRUE,S_Sonder_2=TRUE,S_Mehrfach<>TRUE,S_Sonder_4<>TRUE),TRUE) -> FALSE | C69: =IF(B69,8,"") ->  | E69: 8 | F69: unter UnterGrenze und Teilmonat | H69: W | I69: W | J69: F | K69: F
C70: =SUM(C62:C69) -> 1 | E70: 0 | F70: nicht zulässig
A73: KV ohne Sonder | B73: =IF(S_KV_PV_frei<>TRUE,TRUE) -> TRUE | C73: =IF(B73,10,"") -> 10
A74: KV frei | B74: =IF(S_KV_PV_frei=TRUE,TRUE) -> FALSE | C74: =IF(B74,11,"") -> 
A75: KV allg / ermäßigt | B75: =IF((S_KV_PV_frei<>TRUE),TRUE) -> TRUE | C75: =IF(B75,S_KV_allg_erm.BS+1,"") -> 2
A78: PV ohne Sonder | B78: =IF(AND(S_KV_PV_frei<>TRUE,S_PV_Sachsen<>TRUE),TRUE) -> TRUE | C78: =IF(B78,20,"") -> 20
A79: PV frei | B79: =IF(S_KV_PV_frei=TRUE,TRUE) -> FALSE | C79: =IF(B79,21,"") -> 
A80: PV Sachsen | B80: =IF(AND(S_KV_PV_frei<>TRUE,S_PV_Sachsen=TRUE),TRUE) -> FALSE | C80: =IF(B80,22,"") -> 
A83: RV ohne Sonder | B83: =IF(AND(S_RV_frei<>TRUE,S_RV_aus_t.E.<>TRUE,S_RV_Knapp<>TRUE),TRUE) -> TRUE | C83: =IF(B83,30,"") -> 30
A84: RV frei | B84: =IF(S_RV_frei=TRUE,TRUE) -> FALSE | C84: =IF(B84,31,"") -> 
A85: RV nur AG | B85: =IF(AND(S_RV_frei<>TRUE,S_RV_aus_t.E.=TRUE,S_RV_Knapp<>TRUE),TRUE) -> FALSE | C85: =IF(B85,32,"") -> 
A86: RV Knappschaft | B86: =IF(AND(S_RV_frei<>TRUE,S_RV_aus_t.E.<>TRUE,S_RV_Knapp=TRUE),TRUE) -> FALSE | C86: =IF(B86,33,"") -> 
A87: RV nur AG und Knappschaft | B87: =IF(AND(S_RV_frei<>TRUE,S_RV_aus_t.E.=TRUE,S_RV_Knapp=TRUE),TRUE) -> FALSE | C87: =IF(B87,34,"") -> 
A90: AV ohne Sonder | B90: =IF(AND(S_AV_frei<>TRUE,S_AV_frei_AN<>TRUE),TRUE) -> TRUE | C90: =IF(B90,40,"") -> 40
A91: AV frei | B91: =IF(S_AV_frei=TRUE,TRUE) -> FALSE | C91: =IF(B91,41,"") ->  | F91: 1200 | G91: 18.6 | H91: =F91*G91/100 -> 223.2 | I91: =H91/2 -> 111.6
A92: Frei AV_AN | B92: =IF(S_AV_frei_AN=TRUE,TRUE) -> FALSE | C92: =IF(B92,42,"") ->  | F92: 384.54 | G92: 24.7 | H92: =F92*G92/100 -> 94.98138 | I92: =H92/2 -> 47.49069
H94: AG = ÜE * Satz - ((ÜE * Satz * Faktor)- (AE * Satz))
H96: ÜE * Satz | I96: ÜE * Satz * Faktor | J96: AE * Satz | K96: ((ÜE * Satz * Faktor)- (AE * Satz)) | L96: AG
F97: ÜE | G97: 384.54
F98: AE | G98: 520
F99: Satz | G99: 0.247
F100: Faktor | G100: 2
H101: =G97*G99 -> 94.98138 | I101: =G97*G99*G100 -> 189.96276 | J101: =G98*G99 -> 128.44 | K101: =I101-J101 -> 61.52276 | L101: =H101-K101 -> 33.45862

Sheet Listen (hidden)
B1: Stand: | C1: 2023-12-21 | G1: Jahr | I1: Zusatz KV | J1: RV | K1: AV | L1: PV | M1: RV Knappsch. | N1: KV allg | O1: KV erm | P1: Untergrenze | Q1: Obergrenze | R1: AG-Ant. Sachsen | S1: AN-Ant. Sachsen | T1: Insolvenzgeld | U1: Zuschlag wg Kinderlosigkeit | W1: Mindest lohn | X1: x 130 | Y1: Gerinfügig keits grenze | AA1: SUCH | AB1: SFall-Nr | AC1: Zeile | AD1: Spalte | AE1: Text | AF1: SFall | AH1: SUCH | AI1: SFall-Nr | AJ1: Zeile | AK1: Spalte | AL1: Text | AM1: SFall | AP1: Name | AQ1: Bezug | AR1: Blatt | AS1: Spalte | AT1: Zeile
B2: KV | AA2: =AB2*100+AC2 -> 105 | AB2: 1 | AC2: 5 | AD2: 4 | AE2: Monatliches Arbeitsentgelt: | AF2: ohne Sonderfall | AP2: n_W5_Bez | AQ2: =Dialog!$D$5 | AR2: =MID(AQ2,2,FIND("!",AQ2,1)-2) -> Dialog | AS2: =MID(AQ2,FIND("!",AQ2,1)+2,FIND("$",AQ2,FIND("!",AQ2,1)+2)-FIND("!",AQ2,1)-2) -> D | AT2: =VALUE(MID(AQ2,FIND("$",AQ2,FIND("!",AQ2,1)+2)+1,5)) -> 5
B3: 1 | C3: 0 | F3: 1 | G3: 2024 | H3: =I3+J3+K3+L3+N3 -> 40.9 | I3: 1.7 | J3: 18.6 | K3: 2.6 | L3: 3.4 | M3: 24.7 | N3: 14.6 | O3: 14 | P3: =Y3 -> 538 | Q3: 2000 | R3: 0.012 | S3: 0.022 | T3: 0.0006 | U3: 0.6 | W3: 12.41 | X3: =130*W3 -> 1613.3 | Y3: =ROUNDUP(X3/3,0) -> 538 | AA3: 107 | AB3: 1 | AC3: 7 | AD3: 4 | AE3: Übergangsbereichsentgelt: | AF3: ohne Sonderfall | AP3: n_W5 | AQ3: =Dialog!$E$5 | AR3: Dialog | AS3: E | AT3: 5
B4: 2 | C4: manuelle Eingabe | F4: =F3+1 -> 2 | G4: 2023 | H4: =I4+J4+K4+L4+N4 -> 40.8 | I4: 1.6 | J4: 18.6 | K4: 2.6 | L4: 3.4 | M4: 24.7 | N4: 14.6 | O4: 14 | P4: 520 | Q4: 2000 | R4: 0.012 | S4: 0.022 | T4: 0.0006 | U4: 0.6 | AA4: 109 | AB4: 1 | AC4: 9 | AD4: 4 | AE4: BE Arbeitnehmer: | AF4: ohne Sonderfall | AP4: KV_Text | AQ4: =Dialog!$G$5 | AR4: Dialog | AS4: G | AT4: 5
B5: 3 | C5: 0.0084 | F5: 3 | G5: 2022 | H5: =I5+J5+K5+L5+N5 -> 39.95 | I5: 1.3 | J5: 18.6 | K5: 2.4 | L5: 3.05 | M5: 24.7 | N5: 14.6 | O5: 14 | P5: 520 | Q5: 1600 | R5: 0.01025 | S5: 0.02025 | T5: 0.0009 | U5: 0.35 | AA5: 205 | AB5: 2 | AC5: 5 | AD5: 4 | AE5: Arbeitsentgelt für diese Tätigkeit | AF5: Mehrfachbeschäftigung | AP5: S_Sonder_2_Stunden_Bez | AQ5: =Dialog!$K$5 | AR5: Dialog | AS5: K | AT5: 5
B6: 4 | C6: 0.009 | F6: 4 | G6: 2021 | H6: 39.95 | I6: 1.3 | J6: 18.6 | K6: 2.4 | L6: 3.05 | M6: 24.7 | N6: 14.6 | O6: 14 | P6: 450 | Q6: 1300 | R6: 0.01025 | T6: 0.0012 | U6: 0.25 | W6: Beitragsabschlag PV | AA6: 207 | AB6: 2 | AC6: 7 | AD6: 4 | AE6: Übergangsbereichsentgelt für diese Tätigkeit: | AF6: Mehrfachbeschäftigung | AP6: S_Sonder_2_Tage_Bez | AQ6: =Dialog!$K$5 | AR6: Dialog | AS6: K | AT6: 5
B7: 5 | C7: 0.0098 | F7: 5 | G7: 2020 | H7: 39.75 | I7: 1.1 | J7: 18.6 | K7: 2.4 | L7: 3.05 | M7: 24.7 | N7: 14.6 | O7: 14 | P7: 450 | Q7: 1300 | R7: 0.01025 | T7: 0.0006 | U7: 0.25 | AA7: 209 | AB7: 2 | AC7: 9 | AD7: 4 | AE7: BE Arbeitnehmer für diese Tätigkeit: | AF7: Mehrfachbeschäftigung | AP7: S_Sonder_2_Stunden | AQ7: =Dialog!$L$5 | AR7: Dialog | AS7: L | AT7: 5
B8: 6 | C8: 0.01 | F8: 6 | G8: 2019 | H8: 39.65 | I8: 0.9 | J8: 18.6 | K8: 2.5 | L8: 3.05 | M8: 24.7 | N8: 14.6 | O8: 14 | P8: 450 | Q8: 1300 | R8: 0.01025 | T8: 0.0006 | U8: 0.25 | W8: 1 | X8: 0.25 | AA8: 221 | AB8: 2 | AC8: 21 | AD8: 11 | AE8: gesamtes monatliches Arbeitsentgelt: | AF8: Mehrfachbeschäftigung | AP8: S_Sonder_2_Tage | AQ8: =Dialog!$L$5 | AR8: Dialog | AS8: L | AT8: 5
B9: 7 | C9: 0.0109 | F9: 7 | G9: 2018 | H9: 39.75 | I9: 1 | J9: 18.6 | K9: 3 | L9: 2.55 | M9: 24.7 | N9: 14.6 | O9: 14 | P9: 450 | Q9: 850 | R9: 0.00775 | T9: 0.0006 | U9: 0.25 | W9: 2 | X9: 0.5 | AA9: 222 | AB9: 2 | AC9: 22 | AD9: 11 | AE9: gesamtes monatliches Übergangsbereichsentgelt: | AF9: Mehrfachbeschäftigung | AP9: n_W7_Bez | AQ9: =Dialog!$D$7 | AR9: Dialog | AS9: D | AT9: 7
B10: 8 | C10: 0.011 | F10: 8 | G10: 2017 | H10: 39.95 | I10: 1.1 | J10: 18.7 | K10: 3 | L10: 2.55 | M10: 24.8 | N10: 14.6 | O10: 14 | P10: 450 | Q10: 850 | R10: 0.00775 | T10: 0.0009 | U10: 0.25 | W10: 3 | X10: 0.75 | AA10: =AB10*100+AC10 -> 305 | AB10: 3 | AC10: 5 | AD10: 4 | AE10: Teilmonatsentgelt: | AF10: teilmonatl. Arbeitsentgelt | AP10: n_W7 | AQ10: =Dialog!$E$7 | AR10: Dialog | AS10: E | AT10: 7
B11: 9 | C11: 0.0115 | F11: 9 | G11: 2016 | H11: 39.75 | I11: 1.1 | J11: 18.7 | K11: 3 | L11: 2.35 | M11: 24.8 | N11: 14.6 | O11: 14 | P11: 450 | Q11: 850 | R11: 0.00675 | S11: 0.01675 | T11: 0.0012 | U11: 0.25 | W11: 4 | X11: 1 | AA11: 307 | AB11: 3 | AC11: 7 | AD11: 4 | AE11: Teil-Übergangsbereichsentgelt: | AF11: teilmonatl. Arbeitsentgelt | AP11: RV_Text | AQ11: =Dialog!$G$7 | AR11: Dialog | AS11: G | AT11: 7
B12: 10 | C12: 0.012 | F12: 10 | G12: 2015 | H12: 39.55 | I12: 0.9 | J12: 18.7 | K12: 3 | L12: 2.35 | M12: 24.8 | N12: 14.6 | O12: 14 | P12: 450 | Q12: 850 | R12: 0.00675 | S12: 0.01675 | T12: 0.0015 | U12: 0.25 | AA12: 309 | AB12: 3 | AC12: 9 | AD12: 4 | AE12: Teil-BE Arbeitnehmer: | AF12: teilmonatl. Arbeitsentgelt | AP12: S_Sonder_2_WoStunden_Bez | AQ12: =Dialog!$K$7 | AR12: Dialog | AS12: K | AT12: 7
B13: 11 | C13: 0.0129 | AA13: 321 | AB13: 3 | AC13: 21 | AD13: 11 | AE13: fiktives monatliches Arbeitsentgelt: | AF13: teilmonatl. Arbeitsentgelt | AP13: S_Sonder_2_WoStunden | AQ13: =Dialog!$L$7 | AR13: Dialog | AS13: L | AT13: 7
B14: 12 | C14: 0.013 | AA14: 322 | AB14: 3 | AC14: 22 | AD14: 11 | AE14: fiktives monatliches Übergangsbereichsentgelt: | AF14: teilmonatl. Arbeitsentgelt | AP14: n_W9_Bez | AQ14: =Dialog!$D$9 | AR14: Dialog | AS14: D | AT14: 9
B15: 13 | C15: 0.0135 | AA15: 405 | AB15: 4 | AC15: 5 | AD15: 4 | AE15: Arbeitsentgelt gesamt: | AF15: monatliches Arbeitsentgelt plus Einmalzahlung | AP15: n_W9 | AQ15: =Dialog!$E$9 | AR15: Dialog | AS15: E | AT15: 9
B16: 14 | C16: 0.0138 | AA16: 407 | AB16: 4 | AC16: 7 | AD16: 4 | AE16: Übergangsbereichsentgelt gesamt: | AF16: monatliches Arbeitsentgelt plus Einmalzahlung | AP16: AV_Text | AQ16: =Dialog!$G$9 | AR16: Dialog | AS16: G | AT16: 9
B17: 15 | C17: 0.014 | AA17: =AB17*100+AC17 -> 409 | AB17: 4 | AC17: 9 | AD17: 4 | AE17: BE Arbeitnehmer gesamt: | AF17: monatliches Arbeitsentgelt plus Einmalzahlung | AP17: n_W11_Bez | AQ17: =Dialog!$D$11 | AR17: Dialog | AS17: D | AT17: 11
B18: 16 | C18: 0.0144 | AA18: =AB18*100+AC18 -> 421 | AB18: 4 | AC18: 21 | AD18: 11 | AE18: monatliches Arbeitsentgelt: | AF18: monatliches Arbeitsentgelt plus Einmalzahlung | AP18: n_W11 | AQ18: =Dialog!$E$11 | AR18: Dialog | AS18: E | AT18: 11
B19: 17 | C19: 0.0145 | F19: Auswahl | G19: Beitragszeitraum | H19: Summe SV | I19: Zusatz KV | J19: RV | K19: AV | L19: PV | M19: RV Knappsch. | N19: KV allg | O19: KV erm | P19: Untergrenze | Q19: Obergrenze | R19: AG-Ant. Sachsen | S19: AN-Ant. Sachsen | T19: Insolvenzgeld | U19: Zuschlag wg Kinderlosigkeit | AA19: =AB19*100+AC19 -> 422 | AB19: 4 | AC19: 22 | AD19: 11 | AE19: Einmalzahlung | AF19: monatliches Arbeitsentgelt plus Einmalzahlung | AP19: PV_Text | AQ19: =Dialog!$G$11 | AR19: Dialog | AS19: G | AT19: 11
B20: 18 | C20: 0.0148 | F20: 1 | G20: =F20+1 -> 2 | H20: =G20+1 -> 3 | I20: 4 | J20: 5 | K20: 6 | L20: 7 | M20: 8 | N20: 9 | O20: 10 | P20: 11 | Q20: 12 | R20: 13 | S20: 14 | T20: 15 | U20: 16 | AA20: 505 | AB20: 5 | AC20: 5 | AD20: 4 | AE20: Arbeitsentgelt für das zu bewertende BV: | AF20: Mehrfachbeschäftigung mit teilmonatl. Arbeitsentgelt | AP20: S_Sonder_2_Stunden_B_Bez | AQ20: =Dialog!$K$11 | AR20: Dialog | AS20: K | AT20: 11
B21: 19 | C21: 0.0149 | AA21: 507 | AB21: 5 | AC21: 7 | AD21: 4 | AE21: Übergangsbereichsentgelt für dieses BV: | AF21: Mehrfachbeschäftigung mit teilmonatl. Arbeitsentgelt | AP21: S_Sonder_2_Stunden_B | AQ21: =Dialog!$L$11 | AR21: Dialog | AS21: L | AT21: 11
B22: 20 | C22: 0.015 | AA22: =AB22*100+AC22 -> 509 | AB22: 5 | AC22: 9 | AD22: 4 | AE22: BE Arbeitnehmer für dieses BV: | AF22: Mehrfachbeschäftigung mit teilmonatl. Arbeitsentgelt | AP22: n_W13_Bez | AQ22: =Dialog!$D$13 | AR22: Dialog | AS22: D | AT22: 13
B23: 21 | C23: 0.0154 | AA23: =AB23*100+AC23 -> 521 | AB23: 5 | AC23: 21 | AD23: 11 | AE23: gesamtes monatliches Übergangsbereichsentgelt: | AF23: Mehrfachbeschäftigung mit teilmonatl. Arbeitsentgelt | AP23: n_W13 | AQ23: =Dialog!$E$13 | AR23: Dialog | AS23: E | AT23: 13
B24: 22 | C24: 0.0155 | AA24: =AB24*100+AC24 -> 522 | AB24: 5 | AC24: 22 | AD24: 11 | AE24: gesamtes fiktives Arbeitsentgelt: | AF24: Mehrfachbeschäftigung mit teilmonatl. Arbeitsentgelt | AP24: S_Text | AQ24: =Dialog!$G$13 | AR24: Dialog | AS24: G | AT24: 13
B25: 23 | C25: 0.0158 | AA25: =AB25*100+AC25 -> 523 | AB25: 5 | AC25: 23 | AD25: 11 | AE25: gesamtes fiktives Übergangsbereichsentgelt: | AF25: Mehrfachbeschäftigung mit teilmonatl. Arbeitsentgelt | AP25: S_Sonder_2_WoStunden_Bez_B | AQ25: =Dialog!$K$13 | AR25: Dialog | AS25: K | AT25: 13
B26: 24 | C26: 0.0159 | AA26: 605 | AB26: 6 | AC26: 5 | AD26: 4 | AE26: Arbeitsentgelt gesamt: | AF26: teilmonatl. Arbeitsentgelt plus Einmalzahlung | AP26: S_Sonder_2_WoStunden_B | AQ26: =Dialog!$L$13 | AR26: Dialog | AS26: L | AT26: 13
B27: 25 | C27: 0.016 | AA27: 607 | AB27: 6 | AC27: 7 | AD27: 4 | AE27: Übergangsbereichsentgelt gesamt: | AF27: teilmonatl. Arbeitsentgelt plus Einmalzahlung | AP27: n_W14_Bez | AQ27: =Dialog!$D$14 | AR27: Dialog | AS27: D | AT27: 14
B28: 26 | C28: 0.0165 | AA28: 609 | AB28: 6 | AC28: 9 | AD28: 4 | AE28: BE Arbeitnehmer gesamt: | AF28: teilmonatl. Arbeitsentgelt plus Einmalzahlung | AP28: n_W14 | AQ28: =Dialog!$E$14 | AR28: Dialog | AS28: E | AT28: 14
B29: 27 | C29: 0.0169 | AA29: 621 | AB29: 6 | AC29: 21 | AD29: 11 | AE29: fiktives monatliches Arbeitsentgelt: | AF29: teilmonatl. Arbeitsentgelt plus Einmalzahlung | AP29: nKV_ges | AQ29: =Dialog!$C$18 | AR29: Dialog | AS29: C | AT29: 18
B30: 28 | C30: 0.017 | AA30: 622 | AB30: 6 | AC30: 22 | AD30: 11 | AE30: fiktives monatliches Arbeitsentgelt gesamt: | AF30: teilmonatl. Arbeitsentgelt plus Einmalzahlung | AP30: nKV_AG | AQ30: =Dialog!$E$18 | AR30: Dialog | AS30: E | AT30: 18
B31: 29 | C31: 0.0175 | AA31: 623 | AB31: 6 | AC31: 23 | AD31: 11 | AE31: Teilmonatsentgelt: | AF31: teilmonatl. Arbeitsentgelt plus Einmalzahlung | AP31: nKV_AN | AQ31: =Dialog!$G$18 | AR31: Dialog | AS31: G | AT31: 18
B32: 30 | C32: 0.0177 | AA32: 624 | AB32: 6 | AC32: 24 | AD32: 11 | AE32: Einmalzahlung: | AF32: teilmonatl. Arbeitsentgelt plus Einmalzahlung | AP32: nKV_Satz | AQ32: =Dialog!$I$18 | AR32: Dialog | AS32: I | AT32: 18
B33: 31 | C33: 0.018 | AA33: 705 | AB33: 7 | AC33: 5 | AD33: 4 | AE33: Monatliches Arbeitsentgelt: | AF33: monatl. Arbeitseinkommen kleiner Untergrenze | AP33: nKV_Zu_ges | AQ33: =Dialog!$C$26 | AR33: Dialog | AS33: C | AT33: 20
B34: 32 | C34: 0.0185 | AA34: 707 | AB34: 7 | AC34: 7 | AD34: 4 | AE34: Übergangsbereichsentgelt: | AF34: monatl. Arbeitseinkommen kleiner Untergrenze | AP34: nKV_Zu_AG | AQ34: =Dialog!$E$26 | AR34: =MID(AQ34,2,FIND("!",AQ34,1)-2) -> Dialog | AS34: =MID(AQ34,FIND("!",AQ34,1)+2,FIND("$",AQ34,FIND("!",AQ34,1)+2)-FIND("!",AQ34,1)-2) -> E | AT34: 20
B35: 33 | C35: 0.0189 | AA35: 709 | AB35: 7 | AC35: 9 | AD35: 4 | AE35: BE Arbeitnehmer: | AF35: monatl. Arbeitseinkommen kleiner Untergrenze | AP35: nKV_Zu_AN | AQ35: =Dialog!$G$26 | AR35: Dialog | AS35: G | AT35: 20
B36: 34 | C36: 0.019 | AA36: 805 | AB36: 8 | AC36: 5 | AD36: 4 | AE36: Teilmonatsentgelt: | AF36: monatl. Arbeitseinkommen kleiner Untergrenze und mit teilmonatl. Arbeitsentgelt | AP36: nKV_Zu_Satz | AQ36: =Dialog!$I$26 | AR36: Dialog | AS36: I | AT36: 20
B37: 35 | C37: 0.0198 | AA37: 807 | AB37: 8 | AC37: 7 | AD37: 4 | AE37: Teil-Übergangsbereichsentgelt: | AF37: monatl. Arbeitseinkommen kleiner Untergrenze und mit teilmonatl. Arbeitsentgelt | AP37: nRV_ges | AQ37: =Dialog!$C$20 | AR37: Dialog | AS37: C | AT37: 22
B38: 36 | C38: 0.0199 | AA38: 809 | AB38: 8 | AC38: 9 | AD38: 4 | AE38: Teil-BE Arbeitnehmer: | AF38: monatl. Arbeitseinkommen kleiner Untergrenze und mit teilmonatl. Arbeitsentgelt | AP38: nRV_AG | AQ38: =Dialog!$E$20 | AR38: Dialog | AS38: E | AT38: 22
B39: 37 | C39: 0.02 | AA39: 809 | AB39: 8 | AC39: 21 | AD39: 11 | AE39: fiktives monatliches Arbeitsentgelt: | AF39: monatl. Arbeitseinkommen kleiner Untergrenze und mit teilmonatl. Arbeitsentgelt | AP39: nRV_AN | AQ39: =Dialog!$G$20 | AR39: Dialog | AS39: G | AT39: 22
B40: 38 | C40: 0.0219 | AA40: 811 | AB40: 8 | AC40: 22 | AD40: 11 | AE40: fiktives monatliches Übergangsbereichsentgelt: | AF40: monatl. Arbeitseinkommen kleiner Untergrenze und mit teilmonatl. Arbeitsentgelt | AP40: nRV_Satz | AQ40: =Dialog!$I$20 | AR40: Dialog | AS40: I | AT40: 22
B41: 39 | C41: 0.022 | AA41: 914 | AB41: 9 | AC41: 24 | AD41: 11 | AE41: Beitragsbemessungsgrundlage für RV: | AF41: - | AP41: nAV_ges | AQ41: =Dialog!$C$22 | AR41: Dialog | AS41: C | AT41: 24
B42: 40 | C42: 0.025 | AA42: 3214 | AB42: 32 | AC42: 14 | AE42: Beitragsbemessungsgrundlage für RV: | AF42: RV-Beitrag aus tatsächlichem Arbeitsentgelt | AP42: nAV_AG | AQ42: =Dialog!$E$22 | AR42: Dialog | AS42: E | AT42: 24
AA43: 3214 | AB43: 32 | AC43: 14 | AE43: Beitragsbemessungsgrundlage für RV: | AF43: RV-Beitrag aus tatsächlichem Arbeitsentgelt | AP43: nAV_AN | AQ43: =Dialog!$G$22 | AR43: Dialog | AS43: G | AT43: 24
AA44: 3414 | AB44: 34 | AC44: 14 | AE44: Beitragsbemessungsgrundlage für RV: | AF44: knappschaftl. RV-Beitrag aus tats. Arbeitsentgelt | AP44: nAV_Satz | AQ44: =Dialog!$I$22 | AR44: Dialog | AS44: I | AT44: 24
AA45: 3414 | AB45: 34 | AC45: 14 | AE45: Beitragsbemessungsgrundlage für RV: | AF45: knappschaftl. RV-Beitrag aus tats. Arbeitsentgelt | AP45: nPV_ges | AQ45: =Dialog!$C$24 | AR45: Dialog | AS45: C | AT45: 26
AP46: nPV_AG | AQ46: =Dialog!$E$24 | AR46: Dialog | AS46: E | AT46: 26
AP47: nPV_AN | AQ47: =Dialog!$G$24 | AR47: Dialog | AS47: G | AT47: 26
AP48: nPV_Satz | AQ48: =Dialog!$I$24 | AR48: Dialog | AS48: I | AT48: 26
AP49: nPV_Zu_ges | AQ49: =Dialog!$C$28 | AR49: Dialog | AS49: C | AT49: =VALUE(MID(AQ49,FIND("$",AQ49,FIND("!",AQ49,1)+2)+1,5)) -> 28
AP50: nPV_Zu_AG | AQ50: =Dialog!$E$28 | AR50: Dialog | AS50: E | AT50: 28
AP51: nPV_Zu_AN | AQ51: =Dialog!$G$28 | AR51: Dialog | AS51: G | AT51: 28
AP52: nPV_Zu_Satz | AQ52: =Dialog!$I$28 | AR52: Dialog | AS52: I | AT52: 28
AP53: nU1_ges | AQ53: =Dialog!$C$32 | AR53: Dialog | AS53: C | AT53: 32
AP54: nU1_AG | AQ54: =Dialog!$E$32 | AR54: Dialog | AS54: E | AT54: 32
AP55: nU1_Satz | AQ55: =Dialog!$I$32 | AR55: Dialog | AS55: I | AT55: 32
AP56: nU2_ges | AQ56: =Dialog!$C$33 | AR56: Dialog | AS56: C | AT56: 33
AP57: nU2_AG | AQ57: =Dialog!$E$33 | AR57: Dialog | AS57: E | AT57: 33
AP58: nU2_Satz | AQ58: =Dialog!$I$33 | AR58: Dialog | AS58: I | AT58: 33
AP59: nU3_ges | AQ59: =Dialog!$C$34 | AR59: Dialog | AS59: C | AT59: 34
AP60: nU3_AG | AQ60: =Dialog!$E$34 | AR60: Dialog | AS60: E | AT60: 34
AP61: nU3_Satz | AQ61: =Dialog!$I$34 | AR61: Dialog | AS61: I | AT61: 34
AP62: Druckbereich | AQ62: =Listen!$A$1:$A$83 | AR62: Listen | AS62: A
AP63: Liste_Bezeichnung | AQ63: =Listen!$AA$1:$AJ$44 | AR63: Listen | AS63: AA
AP64: KV | AQ64: =Listen!$B$3:$C$83 | AR64: Listen | AS64: B
AP65: drop_KV | AQ65: =Listen!$C$3:$C$44 | AR65: Listen | AS65: C
AP66: Jahr | AQ66: =Listen!$F$3:$U$6 | AR66: =MID(AQ66,2,FIND("!",AQ66,1)-2) -> Listen | AS66: =MID(AQ66,FIND("!",AQ66,1)+2,FIND("$",AQ66,FIND("!",AQ66,1)+2)-FIND("!",AQ66,1)-2) -> F
AP67: drop_Jahr | AQ67: =Listen!$G$3:$G$3 | AR67: Listen | AS67: G
AP68: Gew_Jahr | AQ68: =Steuerung!$C$2 | AR68: Steuerung | AS68: C | AT68: 2
AP69: LC_Liste_Jahr | AQ69: =Steuerung!$B$3 | AR69: Steuerung | AS69: B | AT69: 3
AP70: Zeitraum | AQ70: =Steuerung!$C$3 | AR70: Steuerung | AS70: C | AT70: 3
AP71: UGrenz | AQ71: =Steuerung!$C$4 | AR71: Steuerung | AS71: C | AT71: 4
AP72: OGrenz | AQ72: =Steuerung!$C$5 | AR72: Steuerung | AS72: C | AT72: 5
AP73: Faktor | AQ73: =Steuerung!$C$6 | AR73: Steuerung | AS73: C | AT73: 6
AP74: nRV_Satz_Jahr | AQ74: =Steuerung!$C$9 | AR74: Steuerung | AS74: C | AT74: 9
AP75: nAV_Satz_Jahr | AQ75: =Steuerung!$C$10 | AR75: Steuerung | AS75: C | AT75: 10
AP76: nPV_Satz_Jahr | AQ76: =Steuerung!$C$11 | AR76: Steuerung | AS76: C | AT76: 11
AP77: S_KV_allg_erm.BS | AQ77: =Steuerung!$B$15 | AR77: Steuerung | AS77: B | AT77: 15
AP78: BS_KV_allg | AQ78: =Steuerung!$C$15 | AR78: Steuerung | AS78: C | AT78: 15
AP79: S_BS_allg | AQ79: =Steuerung!$G$15 | AR79: Steuerung | AS79: G | AT79: 15
AP80: LC_Liste_KV_Zu | AQ80: =Steuerung!$B$16 | AR80: Steuerung | AS80: B | AT80: 16
AP81: BS_KV_Zu | AQ81: =Steuerung!$C$16 | AR81: Steuerung | AS81: C | AT81: =VALUE(MID(AQ81,FIND("$",AQ81,FIND("!",AQ81,1)+2)+1,5)) -> 16
AP82: S_BS_ermäßigt | AQ82: =Steuerung!$G$16 | AR82: Steuerung | AS82: G | AT82: 16
AP83: nRV_Knapp_Jahr | AQ83: =Steuerung!$C$17 | AR83: Steuerung | AS83: C | AT83: 17
AP84: nPV_Sachsen_AG_Jahr | AQ84: =Steuerung!$C$18 | AR84: Steuerung | AS84: C | AT84: 18
AP85: nPV_Sachsen_AN_Jahr | AQ85: =Steuerung!$C$19 | AR85: =MID(AQ85,2,FIND("!",AQ85,1)-2) -> Steuerung | AS85: =MID(AQ85,FIND("!",AQ85,1)+2,FIND("$",AQ85,FIND("!",AQ85,1)+2)-FIND("!",AQ85,1)-2) -> C | AT85: =VALUE(MID(AQ85,FIND("$",AQ85,FIND("!",AQ85,1)+2)+1,5)) -> 19
AP86: S_PV_Zu | AQ86: =Steuerung!$B$20 | AR86: Steuerung | AS86: B | AT86: 20
AP87: BS_PV_Zu | AQ87: =Steuerung!$C$20 | AR87: Steuerung | AS87: C | AT87: 20
AP88: S_U1 | AQ88: =Steuerung!$B$21 | AR88: Steuerung | AS88: B | AT88: 21
AP89: S_U1_Satz | AQ89: =Steuerung!$C$21 | AR89: Steuerung | AS89: C | AT89: 21
AP90: S_U2 | AQ90: =Steuerung!$B$22 | AR90: Steuerung | AS90: B | AT90: 22
AP91: S_U2_Satz | AQ91: =Steuerung!$C$22 | AR91: Steuerung | AS91: C | AT91: 22
C92: =#REF! ->  | AP92: S_U3 | AQ92: =Steuerung!$B$23 | AR92: Steuerung | AS92: B | AT92: 23
AP93: S_U3_Satz | AQ93: =Steuerung!$C$23 | AR93: Steuerung | AS93: C | AT93: 23
AP94: S_KV_PV_frei | AQ94: =Steuerung!$B$25 | AR94: Steuerung | AS94: B | AT94: 25
AP95: S_PV_Sachsen | AQ95: =Steuerung!$B$26 | AR95: Steuerung | AS95: B | AT95: 26
AP96: S_RV_frei | AQ96: =Steuerung!$B$27 | AR96: Steuerung | AS96: B | AT96: 27
AP97: S_RV_aus_t.E. | AQ97: =Steuerung!$B$28 | AR97: Steuerung | AS97: B | AT97: 28
AP98: S_RV_Knapp | AQ98: =Steuerung!$B$29 | AR98: Steuerung | AS98: B | AT98: 29
AP99: S_AV_nur | AQ99: =Steuerung!$B$30 | AR99: =MID(AQ99,2,FIND("!",AQ99,1)-2) -> Steuerung | AS99: =MID(AQ99,FIND("!",AQ99,1)+2,FIND("$",AQ99,FIND("!",AQ99,1)+2)-FIND("!",AQ99,1)-2) -> B | AT99: 30
AP100: S_AV_frei | AQ100: =Steuerung!$B$31 | AR100: =MID(AQ100,2,FIND("!",AQ100,1)-2) -> Steuerung | AS100: =MID(AQ100,FIND("!",AQ100,1)+2,FIND("$",AQ100,FIND("!",AQ100,1)+2)-FIND("!",AQ100,1)-2) -> B | AT100: 31
AP101: S_SGB_III | AQ101: =Steuerung!$B$32 | AR101: =MID(AQ101,2,FIND("!",AQ101,1)-2) -> Steuerung | AS101: =MID(AQ101,FIND("!",AQ101,1)+2,FIND("$",AQ101,FIND("!",AQ101,1)+2)-FIND("!",AQ101,1)-2) -> B | AT101: =VALUE(MID(AQ101,FIND("$",AQ101,FIND("!",AQ101,1)+2)+1,5)) -> 32
AP102: S_Sonder_1 | AQ102: =Steuerung!$B$33 | AR102: Steuerung | AS102: B | AT102: 33
AP103: S_Sonder_2 | AQ103: =Steuerung!$B$34 | AR103: Steuerung | AS103: B | AT103: 34
AP104: S_Sonder_2_Opt | AQ104: =Steuerung!$B$35 | AR104: Steuerung | AS104: B | AT104: 35
AP105: S_Sonder_2_Opt1 | AQ105: =Steuerung!$G$35 | AR105: Steuerung | AS105: G | AT105: 35
AP106: S_Mehrfach | AQ106: =Steuerung!$B$36 | AR106: Steuerung | AS106: B | AT106: 36
AP107: S_Sonder_2_Opt2 | AQ107: =Steuerung!$G$36 | AR107: Steuerung | AS107: G | AT107: 36
AP108: S_Sonder_4 | AQ108: =Steuerung!$B$37 | AR108: Steuerung | AS108: B | AT108: 37
AP109: S_Sonder_5 | AQ109: =Steuerung!$B$38 | AR109: Steuerung | AS109: B | AT109: 38
AP110: nAuswahl_Sonder | AQ110: =Steuerung!$C$40 | AR110: Steuerung | AS110: C | AT110: 40
AP111: S_Sonder_3_Quot | AQ111: =Steuerung!$B$55 | AR111: Steuerung | AS111: B | AT111: 55
AP112: S_Sonder_aktuell | AQ112: =Steuerung!$C$69 | AR112: Steuerung | AS112: C | AT112: 69
